Cogmind - Beta 11.1 @@@ ROGUE MODE // 2022.05.13 @ 23:13:57 Player: darki Result: Destroyed by S-27 Virus with Autogun Performance ------------- Evolutions (3) 1500 Regions Visited (11) 2200 Robots Destroyed (71) 355 Value Destroyed (3146) 3146 Prototype IDs (5) 100 Alien Tech Used (0) 0 Bonus (1606) 1606 TOTAL SCORE: 8907 Bonus ------- High Alert Combat Kills 429 Entered Garrisons 400 Used RIF Installer 500 Aligned with FarCom 300 Friendly Fire -23 Cogmind --------- Core Integrity 0/700 Matter 257/300 Energy 99/100 System Corruption 3% Temperature Cool (0) Movement Core (50) Location -7/Garrison Parts ------- > --- POWER (1) -------- (None) > --- PROPULSION (3) --- (None) > --- UTILITY (6) ------ Terrain Scan Processor Advanced Terrain Scan Processor Relay Coupler [Grunt] (25) Relay Coupler [Brawler] (23) > --- WEAPON (3) ------- (None) > --- INVENTORY (5) ---- (None) Peak State ------------ > --- POWER ------------ Light Nuclear Core > --- PROPULSION ------- Aluminum Leg Carbon-fiber Leg Improved Airjet > --- UTILITY ---------- Small Storage Unit Improved Terrain Scanner Terrain Scan Processor Terrain Scan Processor Reaction Control System > --- WEAPON ----------- AWS/Autocannon > --- INVENTORY -------- Ion Engine Relay Coupler [NC] Relay Coupler [NC] Relay Coupler [Swarmer] Relay Coupler [Grunt] Relay Coupler [Brawler] Autogun Autogun [Rating: 54] Favorites ----------- Power Light Nuclear Core Engine Ion Engine Power Core Light Nuclear Core Propulsion Aluminum Leg Leg Aluminum Leg Wheel Compact Wheel Hover Unit Improved Airjet Utility Terrain Scan Processor Device Improved Terrain Scanner Storage Small Storage Unit Processor Terrain Scan Processor Hackware Relay Coupler [Brawler] Weapon AWS/Autocannon Energy Gun Improved Medium Laser Ballistic Gun Autogun Ballistic Cannon AWS/Autocannon Special Weapon Remote Datajack Build | -11 -10 -10 -9 -9 -9 -8 -8 -8 -8 -7 -7 ------- Run | Scr Mat Min Mat Min Exi Min Mat Sto Gar Fac Gar Slots Evolved 6 | . . . 2 . . . 2 . . 2 . Power . | . . . . . . . . . . . . Propulsion 1 | . . . . . . . . . . 1 . Utility 4 | . . . 2 . . . 1 . . 1 . Weapon 1 | . . . . . . . 1 . . . . Parts Attached 56 | 7 1 3 5 2 4 3 4 . 9 15 3 Power 5 | 1 . . . . . 1 1 . . 2 . Engine 2 | 1 . . . . . . . . . 1 . Core 3 | . . . . . . 1 1 . . 1 . Reactor . | . . . . . . . . . . . . Propulsion 13 | 2 . 2 . 2 . 1 1 . . 3 2 Treads . | . . . . . . . . . . . . Leg 8 | . . 2 . 2 . 1 1 . . 2 . Wheel 2 | 2 . . . . . . . . . . . Hover 3 | . . . . . . . . . . 1 2 Flight . | . . . . . . . . . . . . Utility 14 | 2 . . 1 . 1 . 1 . 1 7 1 Device 4 | 1 . . . . 1 . . . 1 1 . Storage 1 | 1 . . . . . . . . . . . Processor 4 | . . . 1 . . . 1 . . 2 . Hackware 5 | . . . . . . . . . . 4 1 Protection . | . . . . . . . . . . . . Artifact . | . . . . . . . . . . . . Weapon 24 | 2 1 1 4 . 3 1 1 . 8 3 . Energy Gun 4 | 1 . 1 2 . . . . . . . . Energy Cannon . | . . . . . . . . . . . . Ballistic Gun 9 | 1 . . 2 . 2 . . . 4 . . Ballistic Cannon 6 | . . . . . . . 1 . 4 1 . Launcher . | . . . . . . . . . . . . Special Weapon 5 | . 1 . . . 1 1 . . . 2 . Impact Weapon . | . . . . . . . . . . . . Slashing Weapon . | . . . . . . . . . . . . Piercing Weapon . | . . . . . . . . . . . . Special Melee Weapon . | . . . . . . . . . . . . Unidentified Prototypes 5 | . . . 1 . 2 . 1 . . 1 . Parts Lost 17 | . . . . . . 2 . . . 11 4 Power 3 | . . . . . . . . . . 3 . Propulsion 7 | . . . . . . 1 . . . 4 2 Utility 5 | . . . . . . . . . . 3 2 Weapon 2 | . . . . . . 1 . . . 1 . Highest Loss Streak 4 | . . . . . . 2 . . . 3 4 To Critical Strikes . | . . . . . . . . . . . . Average Slot Usage (%) 78 | . 100 100 82 88 87 87 70 72 78 70 48 Engine 3 | . 14 14 11 11 11 . . . . 2 . Core 4 | . . . . . . 10 9 9 9 2 . Leg 17 | . . 13 22 22 22 21 18 18 18 16 . Device 10 | . 14 14 11 11 11 11 9 9 15 3 . Storage 9 | . 14 14 11 11 11 11 9 9 9 7 6 Processor 14 | . . . 5 11 11 11 17 18 18 17 20 Hackware 3 | . . . . . . . . . . 10 16 Energy Gun 1 | . 2 12 8 11 3 . . . . . . Ballistic Gun 4 | . 14 14 13 11 17 17 . . . . . Ballistic Cannon 4 | . . . . . . . 8 9 8 3 . Special Weapon 1 | . 11 1 . . . 3 . . . 3 . Naked Turns . | . . . . . . . . . . . . Heaviest Build 72 | 13 13 13 17 17 17 17 71 71 72 72 5 Greatest Support 35 | 32 32 32 20 20 20 25 25 25 25 35 18 Greatest Overweight (x) 23 | 1 . 1 . . . . 2 2 2 23 1 Average Overweight (x) . | . . . . . . . 2 2 2 1 . Largest Inventory Capacity 8 | 8 8 8 8 8 8 8 8 8 8 8 8 Average Capacity 7 | 7 8 8 8 8 8 8 8 8 8 8 7 Most Carried 8 | . 1 1 8 8 8 8 8 6 8 8 3 Average Carried 6 | . . 1 5 8 7 7 5 6 6 6 1 Final Capacity 8 | 8 8 8 8 8 8 8 8 8 8 8 5 Final Carried 8 | . 1 1 8 8 8 8 6 6 8 3 . Class Distribution -------------------- 49% | Scavenger-Skirmisher 28% | Mutant 9% | Scavenger-Mutant 7% | Skirmisher 4% | Bothacker-Mutant Dominant Class ---------------- Mutant | -10/Materials Mutant | -10/Mines Mutant | -9/Materials Mutant | -9/Mines Mutant | -9/Exiles Scavenger-Skirmisher | -8/Mines Scavenger-Skirmisher | -8/Materials Scavenger-Skirmisher | -8/Storage Scavenger-Skirmisher | -8/Garrison Scavenger-Mutant | -7/Factory Mutant | -7/Garrison Resources | -11 -10 -10 -9 -9 -9 -8 -8 -8 -8 -7 -7 ----------- Run | Scr Mat Min Mat Min Exi Min Mat Sto Gar Fac Gar Matter Collected 994 | 287 . 56 98 93 . 76 76 . 168 140 . Remotely . | . . . . . . . . . . . . Salvage Created 2099 | 214 . 60 298 134 . 58 95 . 452 788 . Parts 127 | 18 . 1 21 7 . 3 5 . 27 45 . Haulers Intercepted 2 | . . . 1 . . . . . . 1 . Recyclers Shooed 3 | 1 . 2 . . . . . . . . . Parts Field Recycled . | . . . . . . . . . . . . Retrieved Matter . | . . . . . . . . . . . . Parts Self-Destructed . | . . . . . . . . . . . . Prevented . | . . . . . . . . . . . . Kills | -11 -10 -10 -9 -9 -9 -8 -8 -8 -8 -7 -7 ------- Run | Scr Mat Min Mat Min Exi Min Mat Sto Gar Fac Gar Combat Hostiles Destroyed 51 | . . 1 8 3 . 1 3 . 20 15 . Guns 13 | . . 1 8 3 . 1 . . . . . Cannons 37 | . . . . . . . 3 . 20 14 . AOE 1 | . . . . . . . . . . 1 . Classes Destroyed 13 | 3 . 1 3 . . 1 . . 1 4 . Worker 6 | 2 . . . . . . . . . 4 . Builder 3 | . . . . . . . . . . 3 . Tunneler 4 | 4 . . . . . . . . . . . Hauler 2 | . . . 1 . . . . . . 1 . Recycler 3 | 1 . . . . . . . . . 2 . Watcher 2 | . . . . . . . . . . 2 . Swarmer 8 | . . . 3 . . . . . 3 2 . Cutter 2 | . . . . . . . . . 2 . . Grunt 33 | . . 1 4 3 . . 3 . 13 9 . Sentry 4 | . . . 1 . . . . . 2 1 . Hunter 1 | . . . . . . 1 . . . . . Programmer 2 | . . . . . . . . . . 2 . Heavy 1 | . . . . . . . . . . 1 . Best Kill Streak 13 | 7 . 1 3 3 . 1 3 . 3 13 . Combat Bots Only 6 | . . 1 3 3 . 1 3 . 3 6 . Max Kills in Single Turn 3 | 1 . 1 1 1 . 1 1 . 1 3 . Gunslinging . | . . . . . . . . . . . . Exploded 1 | . . . . . . . . . . 1 . Melee . | . . . . . . . . . . . . Uniques/NPCs Destroyed . | . . . . . . . . . . . . Combat | -11 -10 -10 -9 -9 -9 -8 -8 -8 -8 -7 -7 -------- Run | Scr Mat Min Mat Min Exi Min Mat Sto Gar Fac Gar Damage Taken 3447 | . . 82 281 67 . 403 32 . 441 1471 670 Core 1006 | . . 26 48 . . 110 . . 106 297 419 Absorbed by Shields 9 | . . . . . . . . . . . 9 Core Remaining (%) 82 | 100 . 89 . . . 60 . . 80 . . Volleys Fired 110 | 17 6 11 31 8 . 14 . . 9 14 . Largest 2 | 2 2 2 2 2 . 2 . . 1 1 . Hottest 120 | 60 120 60 79 79 . 100 . . 23 5 . Shots Fired 318 | 34 12 22 62 16 . 23 7 . 61 81 . Gun 167 | 34 6 22 62 16 . 18 . . 9 . . Cannon 126 | . . . . . . . 7 . 52 67 . Launcher . | . . . . . . . . . . . . Special 25 | . 6 . . . . 5 . . . 14 . Kinetic 235 | 17 6 11 40 8 . 18 7 . 61 67 . Thermal 69 | 17 6 11 22 8 . 5 . . . . . Explosive . | . . . . . . . . . . . . Electromagnetic . | . . . . . . . . . . . . Robot Hit Streak 22 | 5 . 7 16 4 . 9 2 . 11 22 . Robot Miss Streak 4 | 3 . 2 3 2 . 2 1 . 3 4 . Penetration Max . | . . . . . . . . . . . . Secondary Targets 1 | . . . . 1 . . . . . . . Max Gunslinging Chain 1 | . . . . 1 . . . . . . . Autonomous 127 | . . . . . . . 7 . 52 68 . Shots Hit Robots 201 | 22 . 15 44 9 . 12 4 . 38 57 . Core Hits 94 | 10 . 6 15 5 . 3 3 . 18 34 . Critical Kills . | . . . . . . . . . . . . Critical Parts Destroyed . | . . . . . . . . . . . . Critical Strikes 6 | . . . . . . . . . 4 2 . Blast 6 | . . . . . . . . . 4 2 . Melee Attacks . | . . . . . . . . . . . . Impact . | . . . . . . . . . . . . Slashing . | . . . . . . . . . . . . Piercing . | . . . . . . . . . . . . Sneak Attacks . | . . . . . . . . . . . . Combat Hostiles . | . . . . . . . . . . . . Follow-up Attacks . | . . . . . . . . . . . . Damage Inflicted 9027 | 219 . 147 565 141 . 138 348 . 3375 4094 . Guns 1210 | 219 . 147 565 141 . 138 . . . . . Cannons 7451 | . . . . . . . 348 . 3370 3733 . Explosions 361 | . . . . . . . . . . 361 . Melee . | . . . . . . . . . . . . Ramming 5 | . . . . . . . . . 5 . . Kinetic 8209 | 99 . 68 380 73 . 138 348 . 3370 3733 . Thermal 491 | 120 . 79 185 68 . . . . . 39 . Explosive 62 | . . . . . . . . . . 62 . Electromagnetic 260 | . . . . . . . . . . 260 . Impact . | . . . . . . . . . . . . Slashing . | . . . . . . . . . . . . Piercing . | . . . . . . . . . . . . Highest Corruption 3 | . . . . . . . . . . 2 3 Average Corruption 1 | . . . . . . . . . . 1 2 Corruption Purged . | . . . . . . . . . . . . Corruption Blocked . | . . . . . . . . . . . . Effects 3 | . . . . . . . . . . 1 2 Matter Fused 1 | . . . . . . . . . . . 1 Heat Flow Errors 1 | . . . . . . . . . . 1 . Energy Discharges 1 | . . . . . . . . . . . 1 Overload Shots . | . . . . . . . . . . . . Overflow Damage 1234 | . . . . . . . 10 . 359 865 . Projectiles 1186 | . . . . . . . 10 . 359 817 . Explosions 48 | . . . . . . . . . . 48 . Melee . | . . . . . . . . . . . . Knockbacks 26 | . . . . . . . 2 . 11 13 . Impact . | . . . . . . . . . . . . Kinetic 23 | . . . . . . . 1 . 9 13 . Secondary 3 | . . . . . . . 1 . 2 . . Self-Inflicted Damage 355 | . . . . . . . . . . 355 . Shots 4 | . . . . . . . . . . 4 . Rammed 1 | . . . . . . . . . . . 1 Targets Rammed 2 | . . . . . . . . . 1 . 1 Kicked 1 | . . . . . . . . . 1 . . Crushed . | . . . . . . . . . . . . Highest Temperature 207 | 60 60 94 183 157 . 45 . . . 207 . Average Temperature 44 | 25 32 42 47 80 . 25 . . . 114 . Received Heat Transfer 798 | . . 54 81 39 . 144 18 . 189 99 174 Siege Activations . | . . . . . . . . . . . . Robots Corrupted . | . . . . . . . . . . . . Combat Hostiles . | . . . . . . . . . . . . Parts Fried . | . . . . . . . . . . . . Impact Corruptions 1 | . . . . . . . 1 . . . . Robots Melted . | . . . . . . . . . . . . Combat Hostiles . | . . . . . . . . . . . . Parts Melted . | . . . . . . . . . . . . Heat Transferred 1058 | 275 . 175 410 148 . . . . . 50 . Parts Sabotaged . | . . . . . . . . . . . . Parts Stolen . | . . . . . . . . . . . . Parts Stripped . | . . . . . . . . . . . . Power Chain Reactions 1 | . . . . . . . . . . 1 . Missiles Intercepted . | . . . . . . . . . . . . Alert | -11 -10 -10 -9 -9 -9 -8 -8 -8 -8 -7 -7 ------- Run | Scr Mat Min Mat Min Exi Min Mat Sto Gar Fac Gar Peak Influence 1138 | 35 60 90 232 107 . 63 73 30 1138 873 518 Initial 597 | . 22 23 35 37 . . . 30 19 597 513 Average 452 | 9 40 63 109 84 . 40 35 30 612 687 511 Maximum Alert Level 4 | . . . 1 . . . . . 4 3 2 Low Security (%) 36 | 100 100 100 93 100 . 100 100 100 12 . . Level 1 7 | . . . 6 . . . . . 18 . . Level 2 24 | . . . . . . . . . 24 43 100 Level 3 27 | . . . . . . . . . 32 56 . Level 4 4 | . . . . . . . . . 12 . . Level 5 . | . . . . . . . . . . . . High Security . | . . . . . . . . . . . . Max Security . | . . . . . . . . . . . . Squads Dispatched 8 | . . . . . . . 1 . . 7 . Investigation 2 | . . . . . . . 1 . . 1 . Extermination 2 | . . . . . . . . . . 2 . Reinforcement 4 | . . . . . . . . . . 4 . Assault . | . . . . . . . . . . . . Garrison . | . . . . . . . . . . . . Intercept . | . . . . . . . . . . . . Searches Triggered . | . . . . . . . . . . . . Construction Impeded 1 | . . . . . . . . . . 1 . Haulers Reinforced . | . . . . . . . . . . . . Active Scanning Responses . | . . . . . . . . . . . . Cargo Convoy Interrupts . | . . . . . . . . . . . . Stealth | -11 -10 -10 -9 -9 -9 -8 -8 -8 -8 -7 -7 --------- Run | Scr Mat Min Mat Min Exi Min Mat Sto Gar Fac Gar Distress Signals 4 | . . . 2 . . . 1 . . 1 . Communications Jammed . | . . . . . . . . . . . . Distress Signals . | . . . . . . . . . . . . Times Spotted 92 | . 1 4 11 3 . 5 5 . 17 25 21 Peak Tracking Total 20 | . 1 2 6 3 . 3 4 . 4 5 20 Tactical Retreats 5 | . . 1 . . . 1 . . 1 1 1 Traps | -11 -10 -10 -9 -9 -9 -8 -8 -8 -8 -7 -7 ------- Run | Scr Mat Min Mat Min Exi Min Mat Sto Gar Fac Gar Traps Triggered 16 | . . . . . . . . . 13 2 1 Indirectly 1 | . . . . . . . . . . 1 . Trap Hack Attempts . | . . . . . . . . . . . . Triggered . | . . . . . . . . . . . . Disarmed . | . . . . . . . . . . . . Reprogrammed . | . . . . . . . . . . . . Reused . | . . . . . . . . . . . . Traps Extracted . | . . . . . . . . . . . . Installed 1 | . . . . 1 . . . . . . . Triggered . | . . . . . . . . . . . . Machines | -11 -10 -10 -9 -9 -9 -8 -8 -8 -8 -7 -7 ---------- Run | Scr Mat Min Mat Min Exi Min Mat Sto Gar Fac Gar Machines Disabled 20 | . . . . . . . . . 6 14 . Max in Single Turn 5 | . . . . . . . . . 1 5 . Garrison Relay 4 | . . . . . . . . . 4 . . Machines Sabotaged . | . . . . . . . . . . . . Garrisons Compromised . | . . . . . . . . . . . . Overloaded Fab Kills . | . . . . . . . . . . . . Hacking | -11 -10 -10 -9 -9 -9 -8 -8 -8 -8 -7 -7 --------- Run | Scr Mat Min Mat Min Exi Min Mat Sto Gar Fac Gar Machines Accessed 16 | . 1 1 1 . 4 . 2 1 . 6 . Terminals 7 | . 1 1 1 . . . 2 . . 2 . Fabricators 3 | . . . . . . . . . . 3 . Repair Stations . | . . . . . . . . . . . . Recycling Units . | . . . . . . . . . . . . Scanalyzers . | . . . . . . . . . . . . Garrison Access 2 | . . . . . . . . 1 . 1 . Total Hacks 75 | . 3 5 5 . 49 . 4 1 . 8 . Successful 61 | . 1 4 3 . 49 . . 1 . 3 . Failed 14 | . 2 1 2 . . . 4 . . 5 . Catastrophic 1 | . . . . . . . . . . 1 . Database Lockouts . | . . . . . . . . . . . . Manual 7 | . 3 . 3 . 1 . . . . . . Terminals 20 | . 3 5 5 . . . 4 . . 3 . Fabricators 3 | . . . . . . . . . . 3 . Repair Stations . | . . . . . . . . . . . . Recycling Units . | . . . . . . . . . . . . Scanalyzers . | . . . . . . . . . . . . Garrison Access 3 | . . . . . . . . 1 . 2 . Terminal Hacks 57 | . 1 4 3 . 49 . . . . . . Record 53 | . . 4 . . 49 . . . . . . Branch Access Points 1 | . 1 . . . . . . . . . . Alert Level 2 | . . . 2 . . . . . . . . Unreport Threat 1 | . . . 1 . . . . . . . . Fabricator Hacks 1 | . . . . . . . . . . 1 . Network Status 1 | . . . . . . . . . . 1 . Repair Station Hacks . | . . . . . . . . . . . . Recycling Unit Hacks . | . . . . . . . . . . . . Scanalyzer . | . . . . . . . . . . . . Garrison Access Hacks 3 | . . . . . . . . 1 . 2 . Unlock Access 2 | . . . . . . . . 1 . 1 . Coupler Status 1 | . . . . . . . . . . 1 . Unauthorized Hacks . | . . . . . . . . . . . . Terminals . | . . . . . . . . . . . . Fabricators . | . . . . . . . . . . . . Repair Stations . | . . . . . . . . . . . . Recycling Units . | . . . . . . . . . . . . Scanalyzers . | . . . . . . . . . . . . Garrison Access . | . . . . . . . . . . . . Data Cores Recovered . | . . . . . . . . . . . . Used . | . . . . . . . . . . . . Hacking Detections 9 | . 1 . 1 . . . 2 1 . 4 . Full Trace Events 1 | . . . . . . . 1 . . . . Feedback Events . | . . . . . . . . . . . . Feedback Blocked . | . . . . . . . . . . . . Robot Schematics Acquired . | . . . . . . . . . . . . Robots Built . | . . . . . . . . . . . . Authchips . | . . . . . . . . . . . . Time . | . . . . . . . . . . . . Total Robot Build Rating . | . . . . . . . . . . . . Part Schematics Acquired . | . . . . . . . . . . . . Parts Built . | . . . . . . . . . . . . Authchips . | . . . . . . . . . . . . Time . | . . . . . . . . . . . . Total Part Build Rating . | . . . . . . . . . . . . Parts Repaired . | . . . . . . . . . . . . Time . | . . . . . . . . . . . . Parts Recycled . | . . . . . . . . . . . . Recycled Matter . | . . . . . . . . . . . . Retrieved Matter . | . . . . . . . . . . . . Retrieved Components . | . . . . . . . . . . . . Parts Scanalyzed . | . . . . . . . . . . . . Part Schematics Acquired . | . . . . . . . . . . . . Parts Damaged . | . . . . . . . . . . . . Bothacking | -11 -10 -10 -9 -9 -9 -8 -8 -8 -8 -7 -7 ------------ Run | Scr Mat Min Mat Min Exi Min Mat Sto Gar Fac Gar Used RIF Installer 1 | . . . . . . . . . 1 . . Robots Hacked 9 | . . . . . . . . . . 9 . Non-combat 6 | . . . . . . . . . . 6 . Combat 3 | . . . . . . . . . . 3 . Robot Hacks Applied 11 | . . . . . . . . . . 11 . start_evac 1 | . . . . . . . . . . 1 . map_earth 1 | . . . . . . . . . . 1 . drop_inventory 1 | . . . . . . . . . . 1 . check_alert 1 | . . . . . . . . . . 1 . summon_haulers 1 | . . . . . . . . . . 1 . mark_security 1 | . . . . . . . . . . 1 . relay_feed 1 | . . . . . . . . . . 1 . find_garrison 1 | . . . . . . . . . . 1 . link_fov 1 | . . . . . . . . . . 1 . focus_fire 1 | . . . . . . . . . . 1 . formatsys_high 1 | . . . . . . . . . . 1 . Relay Couplers Released 16 | . . . . . . . . . 16 . . Machine Destruction 16 | . . . . . . . . . 16 . . Attached 5 | . . . . . . . . . . 4 1 Fabnet Peak Effective % . | . . . . . . . . . . . . Robots Rewired . | . . . . . . . . . . . . Allies Hacked . | . . . . . . . . . . . . Hacks Repelled . | . . . . . . . . . . . . Allies | -11 -10 -10 -9 -9 -9 -8 -8 -8 -8 -7 -7 -------- Run | Scr Mat Min Mat Min Exi Min Mat Sto Gar Fac Gar Total Allies 1 | . . . . . . . . . . 1 . Largest Group 1 | . . . . . . . . . . 1 . Highest-Rated Group 12 | . . . . . . . . . . 12 . Highest-Rated Ally 12 | . . . . . . . . . . 12 . Total Orders . | . . . . . . . . . . . . Ally Attacks . | . . . . . . . . . . . . Total Damage . | . . . . . . . . . . . . Kills . | . . . . . . . . . . . . Allies Corrupted . | . . . . . . . . . . . . Allies Melted . | . . . . . . . . . . . . Intel | -11 -10 -10 -9 -9 -9 -8 -8 -8 -8 -7 -7 ------- Run | Scr Mat Min Mat Min Exi Min Mat Sto Gar Fac Gar Robot Analysis Total . | . . . . . . . . . . . . Derelict Logs Recovered 3 | . . 2 . 1 . . . . . . . Drone Launches . | . . . . . . . . . . . . Drone Recoveries . | . . . . . . . . . . . . Exploration | -11 -10 -10 -9 -9 -9 -8 -8 -8 -8 -7 -7 ------------- Run | Scr Mat Min Mat Min Exi Min Mat Sto Gar Fac Gar Turns Passed 6166 | 113 63 271 276 333 538 453 256 58 2045 1615 145 Spaces Moved 2968 | 54 32 205 126 242 442 203 90 22 703 686 163 Core 136 | 15 . . . . . . . . . 12 109 Treads . | . . . . . . . . . . . . Legs 2605 | . . 103 126 242 442 203 90 22 703 674 . Wheels 173 | 39 32 102 . . . . . . . . . Hover 54 | . . . . . . . . . . . 54 Flight . | . . . . . . . . . . . . Fastest Speed 50 | 50 100 100 120 120 120 120 260 260 260 100 50 Average Speed 171 | 98 100 110 120 120 120 120 260 260 260 194 77 Slowest Speed 1200 | 100 100 190 120 120 120 120 260 260 260 1200 100 Overloaded Moves . | . . . . . . . . . . . . Propulsion Burnouts . | . . . . . . . . . . . . Robots Hopped . | . . . . . . . . . . . . Cave-ins Triggered . | . . . . . . . . . . . . Exploration Rate (%) 35 | 3 13 35 16 51 92 66 8 10 76 25 32 Regions Visited 11 Branch Regions 5 Pre-discovered Areas 3 | . . 1 . 1 1 . . . . . . Known Exits Taken 5 | . 1 . 1 . . 1 . 1 . 1 . Unknown Exits Taken 5 | 1 . 1 . 1 1 . 1 . . . . Scrap Searched 3 | . . 1 . 1 . 1 . . . . . Spaces Dug 10 | . 6 . . . . 4 . . . . . Terrain Destroyed 63 | . 6 . . . . 4 3 . 12 38 . Melee . | . . . . . . . . . . . . Projectile 45 | . 6 . . . . 4 3 . 12 20 . AOE 18 | . . . . . . . . . . 18 . Terrain Rammed . | . . . . . . . . . . . . Walls Destroyed . | . . . . . . . . . . . . Machines Disabled . | . . . . . . . . . . . . Actions | -11 -10 -10 -9 -9 -9 -8 -8 -8 -8 -7 -7 --------- Run | Scr Mat Min Mat Min Exi Min Mat Sto Gar Fac Gar Total 3845 | 79 40 229 196 271 451 383 113 22 920 960 181 Wait 583 | 2 1 9 24 17 . 160 19 . 107 236 8 Move 2959 | 53 31 204 125 241 441 202 89 22 702 686 163 Hop . | . . . . . . . . . . . . Pick Up 22 | . . . 7 . 1 1 . . 11 2 . Fast Attach 27 | 7 1 2 5 . 2 1 1 . 1 7 . Attach 21 | . . . . . 2 . 2 . 8 7 2 Detach 12 | . 1 . . . . . 1 . 7 3 . Swap 8 | . . 1 . 2 . 2 1 . . 1 1 Drop 29 | . . 2 4 2 5 3 . . 9 4 . Fire 110 | 17 6 11 31 8 . 14 . . 9 14 . Melee . | . . . . . . . . . . . . Ram 1 | . . . . . . . . . . . 1 Kick 1 | . . . . . . . . . 1 . . Crush . | . . . . . . . . . . . . Escape Stasis 70 | . . . . . . . . . 65 . 5 Rewire 1 | . . . . . . . . . . . 1 Trap 1 | . . . . 1 . . . . . . . Miscellaneous . | . . . . . . . . . . . . Route ------- -11/Scrapyard -10/Materials -10/Mines -9/Materials (discovered 4 exits: Mat x2 / *Min x2) -9/Mines -9/Exiles -8/Mines -8/Materials -8/Storage -8/Garrison (discovered 3 exits: *Fac x3) -7/Factory -7/Garrison History --------- Turn | Location | Event 9 | -11/Scrapyard | Discovered new exit (range 15) 114 | -11/Scrapyard | Entered Materials 151 | -10/Materials | Identified exit to Mines 177 | -10/Materials | Entered Mines 183 | -10/Mines | Learned 8 Materials zone layouts 210 | -10/Mines | Met a Derelict bent on vengeance 304 | -10/Mines | Build established: Mutant 393 | -10/Mines | Discovered new exit (range 10) 448 | -10/Mines | Entered Materials 448 | -9/Materials | Evolved 2 slots: Utility x2 449 | -9/Materials | Identified exit to Materials 449 | -9/Materials | Identified exit to Mines 724 | -9/Materials | Entered Mines 889 | -9/Mines | Found a hidden stash of uninstalled traps 1014 | -9/Mines | Received a Rocket Launcher from a helpful Derelict 1029 | -9/Mines | Learned location of Zion (-7) 1047 | -9/Mines | Deemed a non-threat by the Exiles lab entrance 1047 | -9/Mines | Discovered new exit (range 5) 1057 | -9/Mines | Entered Exiles 1086 | -9/Exiles | Met 8R-AWN 1107 | -9/Exiles | Met EX-HEX 1145 | -9/Exiles | Met EX-BIN 1163 | -9/Exiles | Aligned with FarCom system 1164 | -9/Exiles | Given EX-Vault access code 1221 | -9/Exiles | Opened EX-Vault 1231 | -9/Exiles | Found Prototype Device 1231 | -9/Exiles | Identified Skeleton Box 1234 | -9/Exiles | Found Prototype Special Weapon 1234 | -9/Exiles | Identified Field Lobotomy Kit 1243 | -9/Exiles | Found Prototype Ballistic Cannon 1269 | -9/Exiles | Warned to stay clear of 0b10 Research branches 1344 | -9/Exiles | Met EX-DEC 1371 | -9/Exiles | Visited The Gauntlet 1580 | -9/Exiles | Discovered new exit (range 14) 1595 | -9/Exiles | Left Exiles lab with AWS/Autocannon 1595 | -9/Exiles | Entered Mines 2039 | -8/Mines | Discovered exit to Materials (range 8) 2048 | -8/Mines | Entered Materials 2048 | -8/Materials | Evolved 2 slots: Utility x1, Weapon x1 2050 | -8/Materials | Identified AWS/Autocannon 2245 | -8/Materials | Discovered new exit (range 15) 2304 | -8/Materials | Entered Storage 2355 | -8/Storage | Build established: Scavenger-Skirmisher 2362 | -8/Storage | Identified exit to Garrison 2362 | -8/Storage | Entered Garrison 2548 | -8/Garrison | Triggered checkpoint 2587 | -8/Garrison | Triggered checkpoint 2608 | -8/Garrison | Triggered checkpoint 2729 | -8/Garrison | Discovered new exit (range 9) 3036 | -8/Garrison | Discovered new exit (range 13) 3100 | -8/Garrison | Triggered checkpoint 3144 | -8/Garrison | Garrison Relay disabled 3328 | -8/Garrison | Triggered checkpoint 3384 | -8/Garrison | Triggered checkpoint 3458 | -8/Garrison | Garrison Relay disabled 3730 | -8/Garrison | Discovered new exit (range 15) 3885 | -8/Garrison | Garrison Relay disabled 3904 | -8/Garrison | Triggered checkpoint 4098 | -8/Garrison | Triggered checkpoint 4156 | -8/Garrison | Garrison Relay disabled 4397 | -8/Garrison | Installed Relay Interface Framework 4407 | -8/Garrison | Entered Factory 4407 | -7/Factory | Evolved 2 slots: Propulsion x1, Utility x1 4720 | -7/Factory | Lost 3 parts (1p1n1u) 4960 | -7/Factory | Build established: Skirmisher 5582 | -7/Factory | Build established: Scavenger-Mutant 6022 | -7/Factory | Identified exit to Garrison 6022 | -7/Factory | Entered Garrison 6110 | -7/Garrison | Triggered checkpoint 6138 | -7/Garrison | Core integrity fell below 50% 6159 | -7/Garrison | Core integrity fell below 20% 6167 | -7/Garrison | Destroyed by S-27 Virus with Autogun Last Messages --------------- 06116_ A bubble of rippling energy engulfs the area. 06116_ Field strength at 87. 06116_ Field strength at 74. 06117_ Field strength at 61. 06118_ Field strength at 48. 06119_ Field strength at 30. 06120_ Field strength at 17. 06121_ Stasis field depleted. 06129_ Discarded Target Analyzer. 06131_ Gravmag System destroyed. 06132_ Slammed into G-47 Trooper. 06138_ System corrupted: Energy discharge (-24). 06152_ C-30 ARC bursts open, deploying its payload. 06152_ P-60 Hacker unfolds itself. 06154_ Sml. Storage Unit destroyed. Garrison Door activated. 06156_ Imp. Airjet destroyed. 06158_ Relay Coupler [Swarmer] destroyed. 06165_ Attempting to rewire C-30 ARC. 06165_ C-30 ARC is unpowered. Map ----- +----------------------------------------------------+ | ????? "%" ? #??????????????????????????? | | ?????? " ? #??????????????????????????? | | ???????# ## ^ #? #??????????????????????????? | | ?????### ## ## ###????????????????????????? | | ?????# #????????????????????????? | | ?????# #????????????????????????? | | ?????# #????????????????????????? | | ?????# ?????????????????????????? | | ???????# ## ## #??????????????????????????? | | ######## ## ## #??????????????????????????? | | #??????????????????????????? | | #??????????????????????????? | | #??????????????????????????? | | ############ ## #??????????????????????????? | | #??????????# ## #??????????????????????????? | | #??????????####### #??????????????????????????? | | #????????????????#s #??????????????????????????? | | #????????????????# #??????????????????????????? | | #????????????????#s s#######?????????Y??????????? | | #????????????????#p s #???????????????????? | | #????????????????#sss###### #???????????????????? | | #????????????????#sss#??????????????????????????? | | #????????????????# s####???#???????????????????? | | #????????????????# #CC### #########???????????? | | #????????????????# s s ????????? | | #????????????????# @ s ????????? | | #????????????????# ss????????? | | #????????????????########## ##########??????????? | | #???????????????????????????#???????????????????? | | #???????????????????????????????????????????????? | | #???????????????????????????????????????????????? | | #?????????????????????????????sss???????????????? | | #???????????????????????????????????????????????? | | #???????????????????????????????????????????????? | | #???????????????????????????????????????????????? | | #???????????????????????????????????????????????? | | #???????????????????????????????????????????????? | | #???????????????????????????????????????????????? | | #???????????????????????????????????????????????? | | #???????????????????????????????????????????????? | | #???????????????????????????????????????????????? | | #???????????????????????????????????????????????? | | #???????????????????????????????????????????????? | | #???????????????????????????????????????????????? | | #???????????????????????????????????????????????? | | #???????????????????????????????????????????????? | | #???????????????????????????????????????????????? | | ##???????????????????????????????????????????????? | | ?????????????????????????????????????????????????? | | ?????????????????????????????????????????????????? | +----------------------------------------------------+ Best States ------------- Heat Dissipation 34 Energy Generation 15 Energy Capacity 250 Matter Stores 300 Matter Capacity 300 Sight Range 16 Terrain Scan Range 16 Terrain Scan Density 360 Jamming Range 12 Evasion (%) 55 Target Analysis 5 Relay Coupler Types 3 Relay Coupler Value 74 Item Schematics ----------------- None Robot Schematics ------------------ None Fabricated ------------ Nothing Alien Tech Used ----------------- None Achievements -------------- None Challenges ------------ None Game ------ Seed PortableSchematicScreen Manual? 0 Play Time 00:40:25 Cumulative 61.6 hours Start 2022.05.13 @ 22:31:49 End 2022.05.13 @ 23:13:57 Sessions 1 Manual Loads 0 Difficulty Rogue Special Mode None Game No. 72 Rogue 72 Adventurer 0 Explorer 0 Win Type - Total 0 Types 0/0/0/0/0/0/0/0/0 Lore% 35 Gallery% 45 Achievement% 35 Wizard Run 0 Options --------- ASCII 0 Keyboard 0 Movement Mouse Keybinds 0 Fullscreen 1 Font 18/SmallcapsGlow Map View 76x50 Tactical HUD 1 Map Filters NONE Filters NONE Steam 1 RUN: 590c97bd-32ee-4c18-b3cc-5825474c0568